[Event "BL 2018-19"]
[Site "Berlin"]
[Date "2019.04.06"]
[Round "14"]
[White "Buckels, Valentin"]
[Black "Banusz, Tamas"]
[Result "1/2-1/2"]
[ECO "D02"]
[WhiteElo "2427"]
[BlackElo "2606"]
[Annotator "ChessBase"]
[PlyCount "85"]
[EventDate "2018.11.10"]
[EventType "team-tourn"]
[EventCountry "GER"]
[SourceTitle "playchess.com"]
[Source "ChessBase"]
[SourceQuality "1"]
[WhiteTeam "Muelheim"]
[BlackTeam "Hockenheim"]
[TimeControl "40/6000+30:3000+30"]

1. d4 {[%emt 0:00:30]} d5 {[%emt 0:00:30]} 2. Bf4 {[%emt 0:00:30]} Nf6 {[%emt 0:00:30]} 3. e3 {[%emt 0:00:30]} c5 {[%emt 0:00:30]} 4. Nf3 {[%emt 0:00:30]} e6 {[%emt 0:00:30]} 5. Nbd2 {[%emt 0:00:30]} Bd6 {[%emt 0:00:30]} 6. Bg3 {[%emt 0:00:30]} Qc7 {[%emt 0:00:30]} 7. dxc5 {[%emt 0:00:30]} Qxc5 {[%emt 0:00:30]} 8. c4 {[%emt 0:00:30]} dxc4 {[%emt 0:00:30]} 9. Rc1 {[%emt 0:00:30]} Bxg3 {[%emt 0:00:30]} 10. hxg3 {[%emt 0:00:30]} Nc6 {[%emt 0:00:30]} 11. Rxc4 {[%emt 0:00:30]} Qe7 {[%emt 0:00:30]} 12. Qc2 {[%emt 0:00:30]} Bd7 {[%emt 0:00:30]} 13. g4 {[%emt 0:00:30]} Na5 {[%emt 0:00:30]} 14. g5 {[%emt 0:00:30]} Nd5 {[%emt 0:00:30]} 15. Rch4 {[%emt 0:00:30]} Rc8 {[%emt 0:00:30]} 16. Qb1 {[%emt 0:00:30]} Qc5 {[%emt 0:00:30]} 17. Bd3 {[%emt 0:00:30]} Nb4 {[%emt 0:00:30]} 18. Ne4 {[%emt 0:00:30]} Nxd3+ {[%emt 0:00:30]} 19. Qxd3 {[%emt 0:00:30]} Qc1+ {[%emt 0:00:30]} 20. Ke2 {[%emt 0:00:30]} Qc2+ {[%emt 0:00:30]} 21. Qxc2 {[%emt 0:00:30]} Rxc2+ {[%emt 0:00:30]} 22. Kd3 {[%emt 0:00:30]} Rxb2 {[%emt 0:00:30]} 23. Rxh7 {[%emt 0:00:30]} Rg8 {[%emt 0:00:30]} 24. Rh8 {[%emt 0:00:30]} Rxh8 {[%emt 0:00:30]} 25. Rxh8+ {[%emt 0:00:30]} Ke7 {[%emt 0:00:30]} 26. Rg8 {[%emt 0:00:30]} Rxa2 {[%emt 0:00:30]} 27. g6 {[%emt 0:00:30]} Bb5+ {[%emt 0:00:30]} 28. Kc3 {[%emt 0:00:30]} Ra3+ {[%emt 0:00:30]} 29. Kb2 {[%emt 0:00:30]} Nc4+ {[%emt 0:00:30]} 30. Kb1 {[%emt 0:00:30]} Bc6 {[%emt 0:00:30]} 31. Neg5 {[%emt 0:00:30]} fxg6 {[%emt 0:00:30]} 32. Rxg7+ {[%emt 0:00:30]} Kd6 {[%emt 0:00:30]} 33. Nd4 {[%emt 0:00:30]} Ne5 {[%emt 0:00:30]} 34. Kb2 {[%emt 0:00:30]} Ra5 {[%emt 0:00:30]} 35. Kb3 {[%emt 0:00:30]} Bd5+ {[%emt 0:00:30]} 36. Kb4 {[%emt 0:00:30]} Ra2 {[%emt 0:00:30]} 37. f4 {[%emt 0:00:30]} Nd3+ {[%emt 0:00:30]} 38. Kc3 {[%emt 0:00:30]} Ra3+ {[%emt 0:00:30]} 39. Kd2 {[%emt 0:00:30]} a6 {[%emt 0:00:30]} 40. Nc2 {[%emt 0:00:30]} Rb3 {[%emt 0:00:30]} 41. Nd4 {[%emt 0:50:30]} Ra3 {[%emt 0:50:30]} 42. Nc2 {[%emt 0:00:30]} Rb3 {[%emt 0:00:30]} 43. Nd4 {[%emt 0:00:30]} 1/2-1/2

[Event "BL 2018-19"]
[Site "Berlin"]
[Date "2019.04.06"]
[Round "14"]
[White "Warmerdam, Max"]
[Black "Buhmann, Rainer"]
[Result "1/2-1/2"]
[ECO "B11"]
[WhiteElo "2422"]
[BlackElo "2574"]
[Annotator "ChessBase"]
[PlyCount "48"]
[EventDate "2018.11.10"]
[EventType "team-tourn"]
[EventCountry "GER"]
[SourceTitle "playchess.com"]
[Source "ChessBase"]
[SourceQuality "1"]
[WhiteTeam "Muelheim"]
[BlackTeam "Hockenheim"]
[TimeControl "40/6000+30:3000+30"]

1. e4 {[%emt 0:00:30]} c6 {[%emt 0:00:30]} 2. Nf3 {[%emt 0:00:30]} d5 {[%emt 0:00:30]} 3. Nc3 {[%emt 0:00:30]} dxe4 {[%emt 0:00:30]} 4. Nxe4 {[%emt 0:00:30]} Nf6 {[%emt 0:00:30]} 5. Qe2 {[%emt 0:00:30]} Nxe4 {[%emt 0:00:30]} 6. Qxe4 {[%emt 0:00:30]} Nd7 {[%emt 0:00:30]} 7. Bc4 {[%emt 0:00:30]} Nf6 {[%emt 0:00:30]} 8. Ne5 {[%emt 0:00:30]} e6 {[%emt 0:00:30]} 9. Qe2 {[%emt 0:00:30]} b5 {[%emt 0:00:30]} 10. Bb3 {[%emt 0:00:30]} Qc7 {[%emt 0:04:30]} 11. d4 {[%emt 0:14:30]} Bd6 12. Bg5 O-O {[%emt 0:12:00]} 13. Bxf6 {[%emt 0:16:00]} gxf6 {[%emt 0:02:30]} 14. Nd3 Kh8 15. f4 Bb7 16. Qf2 Rad8 {[%emt 0:33:30]} 17. Nc5 {[%emt 0:29:00]} Bxc5 {[%emt 0:12:30]} 18. dxc5 {[%emt 0:00:30]} Qa5+ {[%emt 0:07:30]} 19. c3 {[%emt 0:00:30]} b4 {[%emt 0:00:30]} 20. c4 {[%emt 0:01:30]} Rd7 {[%emt 0:08:30]} 21. Qh4 {[%emt 0:09:30]} Qxc5 {[%emt 0:04:30]} 22. Bc2 {[%emt 0:00:30]} f5 {[%emt 0:12:32]} 23. Qf6+ {[%emt 0:00:30]} Kg8 {[%emt 0:00:06]} 24. Qg5+ {[%emt 0:00:00]} Kh8 {[%emt 0:00:03]} 1/2-1/2

[Event "BL 2018-19"]
[Site "Berlin"]
[Date "2019.04.06"]
[Round "14.2"]
[White "Arnaudov, G. Petar"]
[Black "Schroeder, Jan-Christian"]
[Result "1/2-1/2"]
[ECO "A13"]
[WhiteElo "2459"]
[BlackElo "2571"]
[Annotator "ChessBase"]
[PlyCount "132"]
[EventDate "2018.11.10"]
[EventType "team-tourn"]
[EventCountry "GER"]
[SourceTitle "playchess.com"]
[Source "ChessBase"]
[SourceQuality "1"]
[WhiteTeam "Augsburg"]
[BlackTeam "SV Hofheim"]
[TimeControl "40/6000+30:3000+30"]

1. c4 {[%emt 0:00:00]} e6 {[%emt 0:00:00]} 2. Nf3 {[%emt 0:00:00]} d5 {[%emt 0:00:00]} 3. g3 {[%emt 0:00:00]} Nf6 {[%emt 0:03:38]} 4. Bg2 {[%emt 0:00:00]} dxc4 {[%emt 0:03:15]} 5. O-O {[%emt 0:02:14]} Nbd7 {[%emt 0:04:57]} 6. Qc2 {[%emt 0:00:21]} Nb6 {[%emt 0:11:44]} 7. a4 {[%emt 0:00:57]} a5 {[%emt 0:02:16]} 8. Na3 {[%emt 0:01:21]} Bxa3 {[%emt 0:15:35]} 9. Rxa3 {[%emt 0:00:05]} O-O {[%emt 0:00:23]} 10. e4 {[%emt 0:00:22]} Bd7 {[%emt 0:16:26]} 11. Ne5 {[%emt 0:04:58]} Qe8 {[%emt 0:02:05]} 12. Nxd7 {[%emt 0:06:09]} Qxd7 {[%emt 0:04:48]} 13. d3 {[%emt 0:09:36]} cxd3 {[%emt 0:01:31]} 14. Rxd3 {[%emt 0:03:37]} Qxa4 {[%emt 0:01:24]} 15. Qxc7 {[%emt 0:00:12]} Qb5 {[%emt 0:01:57]} 16. Rfd1 {[%emt 0:02:07]} Rac8 {[%emt 0:12:46]} 17. Qxb7 {[%emt 0:02:17]} Rxc1 {[%emt 0:00:35]} 18. Rxc1 {[%emt 0:00:06]} Qxd3 {[%emt 0:00:03]} 19. Qxb6 {[%emt 0:00:15]} Qd2 {[%emt 0:00:13]} 20. Ra1 {[%emt 0:03:59]} Rc8 {[%emt 0:06:17]} 21. Qxa5 {[%emt 0:01:32]} Qxb2 {[%emt 0:01:32]} 22. Rd1 {[%emt 0:00:14]} g6 {[%emt 0:00:24]} 23. Bf3 {[%emt 0:05:17]} Qc3 {[%emt 0:10:25]} 24. Qxc3 {[%emt 0:01:15]} Rxc3 {[%emt 0:00:02]} 25. Kg2 {[%emt 0:00:15]} Rc5 {[%emt 0:00:25]} 26. h4 {[%emt 0:00:06]} h6 {[%emt 0:00:04]} 27. Rd4 {[%emt 0:00:50]} Re5 {[%emt 0:01:30]} 28. Kf1 {[%emt 0:00:33]} g5 {[%emt 0:00:17]} 29. hxg5 {[%emt 0:00:07]} hxg5 {[%emt 0:00:03]} 30. Bg2 {[%emt 0:00:02]} Ra5 {[%emt 0:02:37]} 31. Bf3 {[%emt 0:02:40]} Kg7 {[%emt 0:01:35]} 32. Be2 {[%emt 0:00:40]} Kh6 {[%emt 0:02:59]} 33. Rb4 {[%emt 0:01:44]} Re5 {[%emt 0:02:16]} 34. Bd3 {[%emt 0:00:38]} Ra5 {[%emt 0:01:44]} 35. Be2 {[%emt 0:00:41]} Kg6 {[%emt 0:00:10]} 36. f4 {[%emt 0:00:56]} e5 {[%emt 0:01:20]} 37. fxe5 {[%emt 0:00:27]} Rxe5 {[%emt 0:00:17]} 38. Bd3 {[%emt 0:01:54]} Nd7 {[%emt 0:00:24]} 39. Bc4 {[%emt 0:01:41]} Rc5 {[%emt 0:00:56]} 40. Be2 {[%emt 0:01:54]} Ne5 {[%emt 0:00:25]} 41. Kf2 {[%emt 0:51:00]} Rc3 {[%emt 0:50:41]} 42. Rb6+ {[%emt 0:01:24]} Kg7 {[%emt 0:00:00]} 43. Ra6 {[%emt 0:00:00]} Nd7 {[%emt 0:00:00]} 44. Rd6 {[%emt 0:00:00]} Nc5 {[%emt 0:00:00]} 45. Rd4 {[%emt 0:00:00]} Ra3 {[%emt 0:00:00]} 46. Rc4 {[%emt 0:00:00]} Nd7 {[%emt 0:00:00]} 47. Rd4 {[%emt 0:00:00]} Nc5 {[%emt 0:00:00]} 48. Rc4 {[%emt 0:00:00]} Ra5 {[%emt 0:00:00]} 49. Rd4 {[%emt 0:00:00]} Kf6 {[%emt 0:00:00]} 50. Ke3 {[%emt 0:00:00]} Ra3+ {[%emt 0:00:00]} 51. Kf2 {[%emt 0:00:00]} Rc3 {[%emt 0:00:00]} 52. Rd6+ {[%emt 0:00:00]} Ke7 {[%emt 0:00:00]} 53. Rd4 {[%emt 0:00:00]} f6 {[%emt 0:00:00]} 54. Bg4 {[%emt 0:00:00]} Ra3 {[%emt 0:00:00]} 55. Bf5 {[%emt 0:00:00]} Nd3+ {[%emt 0:00:00]} 56. Kg2 {[%emt 0:00:00]} Ra2+ {[%emt 0:00:00]} 57. Kf1 {[%emt 0:00:00]} Ne5 {[%emt 0:00:00]} 58. Rd1 {[%emt 0:00:00]} g4 {[%emt 0:00:00]} 59. Rd4 {[%emt 0:00:00]} Rb2 {[%emt 0:00:00]} 60. Rd1 {[%emt 0:00:00]} Nc4 {[%emt 0:00:00]} 61. Rd7+ {[%emt 0:00:00]} Ke8 {[%emt 0:00:00]} 62. Rd3 {[%emt 0:00:00]} Nd2+ {[%emt 0:00:00]} 63. Ke1 {[%emt 0:00:00]} Nf3+ {[%emt 0:00:00]} 64. Kf1 {[%emt 0:00:00]} Nd2+ {[%emt 0:00:00]} 65. Ke1 {[%emt 0:00:00]} Nf3+ {[%emt 0:00:00]} 66. Kf1 {[%emt 0:00:00]} Nd2+ {[%emt 0:00:00]} 1/2-1/2

[Event "BL 2018-19"]
[Site "Berlin"]
[Date "2019.04.06"]
[Round "14.3"]
[White "Neef, Maximilian"]
[Black "Hansen, Sune Berg"]
[Result "1/2-1/2"]
[ECO "A45"]
[WhiteElo "2479"]
[BlackElo "2583"]
[Annotator "ChessBase"]
[PlyCount "142"]
[EventDate "2018.11.10"]
[EventType "team-tourn"]
[EventCountry "GER"]
[SourceTitle "playchess.com"]
[Source "ChessBase"]
[SourceQuality "1"]
[WhiteTeam "Dresden"]
[BlackTeam "Hamburg SK"]
[TimeControl "40/6000+30:3000+30"]

1. d4 {[%emt 0:00:00]} Nf6 {[%emt 0:00:16]} 2. Bf4 {[%emt 0:00:00]} d5 {[%emt 0:01:58]} 3. e3 {[%emt 0:00:09]} e6 {[%emt 0:00:36]} 4. Nd2 {[%emt 0:00:15]} Bd6 {[%emt 0:01:21]} 5. Bg3 {[%emt 0:00:13]} c5 {[%emt 0:01:19]} 6. c3 {[%emt 0:00:27]} Qc7 {[%emt 0:00:52]} 7. dxc5 {[%emt 0:01:34]} Bxg3 {[%emt 0:01:28]} 8. hxg3 {[%emt 0:00:09]} Qxc5 {[%emt 0:00:11]} 9. Ngf3 {[%emt 0:01:51]} Nbd7 {[%emt 0:06:13]} 10. Bd3 {[%emt 0:14:31]} Qb6 {[%emt 0:12:15]} 11. b4 {[%emt 0:04:38]} h6 {[%emt 0:06:45]} 12. O-O {[%emt 0:02:59]} O-O {[%emt 0:01:10]} 13. Qe2 {[%emt 0:08:59]} Re8 {[%emt 0:05:58]} 14. e4 {[%emt 0:11:51]} dxe4 {[%emt 0:01:38]} 15. Nxe4 {[%emt 0:00:15]} Nxe4 {[%emt 0:03:03]} 16. Bxe4 {[%emt 0:04:08]} Nf6 {[%emt 0:02:37]} 17. Ne5 {[%emt 0:04:59]} Bd7 {[%emt 0:10:55]} 18. a4 {[%emt 0:18:35]} Rad8 {[%emt 0:13:16]} 19. a5 {[%emt 0:11:54]} Qc7 {[%emt 0:02:52]} 20. c4 {[%emt 0:00:34]} Bc8 {[%emt 0:02:46]} 21. Bf3 {[%emt 0:03:08]} Nd7 {[%emt 0:02:58]} 22. Nxd7 {[%emt 0:02:41]} Bxd7 {[%emt 0:10:43]} 23. c5 {[%emt 0:05:21]} a6 {[%emt 0:04:46]} 24. Rfd1 {[%emt 0:01:03]} Bb5 {[%emt 0:04:15]} 25. Qe1 {[%emt 0:01:51]} Bc6 {[%emt 0:01:13]} 26. Ra2 {[%emt 0:05:48]} Bxf3 {[%emt 0:04:07]} 27. gxf3 {[%emt 0:00:03]} Qc6 {[%emt 0:00:56]} 28. Kg2 {[%emt 0:01:47]} Rd5 {[%emt 0:01:18]} 29. Rad2 {[%emt 0:02:55]} Kf8 {[%emt 0:01:40]} 30. Rxd5 {[%emt 0:00:58]} exd5 {[%emt 0:00:04]} 31. Qd2 {[%emt 0:00:07]} Re5 {[%emt 0:00:17]} 32. Qd4 {[%emt 0:00:59]} f6 {[%emt 0:00:13]} 33. Qg4 {[%emt 0:01:03]} Kf7 {[%emt 0:00:27]} 34. f4 {[%emt 0:00:38]} d4+ {[%emt 0:03:09]} 35. Kh2 Rd5 {[%emt 0:01:06]} 36. Rd3 {[%emt 0:00:58]} h5 {[%emt 0:00:47]} 37. Qd1 {[%emt 0:00:19]} Qd7 {[%emt 0:00:13]} 38. Kg1 {[%emt 0:00:36]} Kf8 {[%emt 0:00:20]} 39. Qe2 {[%emt 0:00:27]} Qe7 {[%emt 0:01:02]} 40. Qf3 {[%emt 0:00:43]} Qe6 {[%emt 0:00:41]} 41. Qd1 {[%emt 0:09:27]} Qe4 {[%emt 0:05:10]} 42. Qd2 {[%emt 0:11:50]} Rd7 {[%emt 0:03:16]} 43. Kh2 {[%emt 0:03:46]} g6 {[%emt 0:04:22]} 44. Kg1 {[%emt 0:03:28]} Kg7 {[%emt 0:02:30]} 45. Kh2 {[%emt 0:01:56]} Qd5 {[%emt 0:03:08]} 46. Qe2 {[%emt 0:01:22]} Kf7 {[%emt 0:00:30]} 47. Qd2 {[%emt 0:00:56]} Ke8 {[%emt 0:01:18]} 48. Qb2 {[%emt 0:02:27]} Kf7 {[%emt 0:02:32]} 49. Qd2 {[%emt 0:00:27]} Rd8 {[%emt 0:00:16]} 50. Kg1 {[%emt 0:00:55]} Qe4 {[%emt 0:01:53]} 51. Kh2 {[%emt 0:00:39]} Kf8 {[%emt 0:01:47]} 52. Re3 {[%emt 0:02:46]} Qd5 {[%emt 0:01:01]} 53. Rd3 {[%emt 0:00:15]} Kf7 {[%emt 0:01:26]} 54. Kg1 {[%emt 0:00:51]} Qe4 {[%emt 0:00:16]} 55. Kh2 {[%emt 0:01:28]} Kg7 {[%emt 0:01:17]} 56. Kg1 {[%emt 0:00:22]} Kh6 {[%emt 0:02:14]} 57. Kh2 {[%emt 0:01:15]} Kh7 {[%emt 0:00:10]} 58. Kg1 {[%emt 0:00:11]} Kg7 {[%emt 0:00:06]} 59. Kh2 {[%emt 0:00:32]} h4 {[%emt 0:02:24]} 60. gxh4 {[%emt 0:04:21]} Rh8 {[%emt 0:07:37]} 61. f3 {[%emt 0:02:53]} Qf5 {[%emt 0:01:29]} 62. Rxd4 {[%emt 0:01:04]} Rxh4+ {[%emt 0:00:40]} 63. Kg1 {[%emt 0:00:14]} Kh6 {[%emt 0:02:01]} 64. Re4 {[%emt 0:04:45]} Kh5 {[%emt 0:04:28]} 65. Qd8 {[%emt 0:03:41]} Rxf4 {[%emt 0:02:59]} 66. Rxf4 {[%emt 0:00:58]} Qxf4 {[%emt 0:00:07]} 67. Qd5+ {[%emt 0:00:19]} f5 {[%emt 0:01:17]} 68. Qxb7 {[%emt 0:00:22]} Qg5+ {[%emt 0:00:21]} 69. Kh2 {[%emt 0:00:59]} Qh4+ {[%emt 0:00:13]} 70. Kg2 {[%emt 0:00:10]} Qg5+ {[%emt 0:00:07]} 71. Kh2 {[%emt 0:00:39]} Qh4+ {[%emt 0:00:11]} 1/2-1/2

[Event "BL 2018-19"]
[Site "Berlin"]
[Date "2019.04.06"]
[Round "14.5"]
[White "Womacka, Mathias"]
[Black "Schmittdiel, Eckhard"]
[Result "1-0"]
[ECO "B32"]
[WhiteElo "2449"]
[BlackElo "2436"]
[Annotator "NA"]
[PlyCount "103"]
[EventDate "2018.11.10"]
[EventType "team-tourn"]
[EventCountry "GER"]
[SourceTitle "playchess.com"]
[Source "ChessBase"]
[SourceQuality "1"]
[WhiteTeam "SV Hofheim"]
[BlackTeam "Augsburg"]
[TimeControl "40/6000+30:3000+30"]

1. e4 {[%emt 0:00:00]} c5 {[%emt 0:00:00]} 2. Nf3 {[%emt 0:00:00]} Nc6 {[%emt 0:00:00]} 3. d4 {[%emt 0:00:00]} cxd4 {[%emt 0:00:00]} 4. Nxd4 {[%emt 0:00:00]} e5 {[%emt 0:00:01]} 5. Nb5 {[%emt 0:00:13]} d6 {[%emt 0:00:22]} 6. N1c3 {[%emt 0:00:46]} a6 {[%emt 0:00:09]} 7. Na3 {[%emt 0:00:04]} b5 {[%emt 0:00:06]} 8. Nd5 {[%emt 0:00:14]} Be7 {[%emt 0:00:09]} 9. c4 {[%emt 0:01:28]} b4 {[%emt 0:00:06]} 10. Nc2 {[%emt 0:00:22]} a5 {[%emt 0:00:06]} 11. Be3 {[%emt 0:01:38]} Rb8 {[%emt 0:00:08]} 12. Be2 {[%emt 0:03:29]} Nf6 {[%emt 0:00:16]} 13. Qd3 {[%emt 0:01:01]} Rb7 {[%emt 0:01:51]} 14. O-O {[%emt 0:04:38]} O-O {[%emt 0:01:18]} 15. h3 {[%emt 0:16:08]} Nxd5 {[%emt 0:04:00]} 16. Qxd5 {[%emt 0:24:00]} Nb8 $11 {[%emt 0:19:56]} 17. Bg4 {[%emt 0:04:35]} Nd7 {[%emt 0:00:21]} 18. Qd2 {[%emt 0:00:23]} Qc7 {[%emt 0:03:31]} 19. b3 {[%emt 0:01:24]} h6 {[%emt 0:05:08]} 20. Bf5 {[%emt 0:13:07]} Nf6 {[%emt 0:01:18]} 21. Bxc8 {[%emt 0:00:53]} Rxc8 {[%emt 0:01:23]} 22. f3 {[%emt 0:00:17]} Qc6 {[%emt 0:04:07]} 23. Rfd1 {[%emt 0:00:25]} Rcb8 {[%emt 0:06:09]} 24. Bf2 {[%emt 0:05:52]} Rd7 {[%emt 0:03:56]} 25. Ne3 {[%emt 0:01:15]} Bd8 {[%emt 0:06:10]} 26. Nd5 {[%emt 0:03:03]} Ne8 {[%emt 0:01:48]} 27. Qe2 {[%emt 0:03:09]} Kh7 {[%emt 0:15:01]} 28. Rd3 {[%emt 0:00:13]} Rdb7 {[%emt 0:00:27]} 29. Rad1 {[%emt 0:00:26]} Qc8 {[%emt 0:00:25]} 30. Kh1 {[%emt 0:06:01]} Bg5 {[%emt 0:06:01]} 31. Kh2 {[%emt 0:02:33]} Qe6 {[%emt 0:02:23]} 32. h4 {[%emt 0:01:52]} Bd8 {[%emt 0:02:11]} 33. g3 {[%emt 0:00:09]} g6 {[%emt 0:00:21]} 34. h5 {[%emt 0:03:15]} Bg5 {[%emt 0:05:42]} 35. Kg2 {[%emt 0:01:08]} f5 {[%emt 0:02:03]} 36. hxg6+ {[%emt 0:02:28]} Qxg6 {[%emt 0:00:07]} 37. exf5 {[%emt 0:04:39]} Qxf5 {[%emt 0:00:06]} 38. Qe4 {[%emt 0:00:47]} Qxe4 {[%emt 0:00:08]} 39. fxe4 {[%emt 0:00:04]} Rf7 {[%emt 0:00:39]} 40. Rf3 {[%emt 0:03:26]} Rxf3 {[%emt 0:00:37]} 41. Kxf3 {[%emt 0:50:19]} Ra8 {[%emt 0:53:17]} 42. Bb6 {[%emt 0:00:00]} Ra6 {[%emt 0:00:00]} 43. Nc7 {[%emt 0:00:00]} Rxb6 {[%emt 0:00:00]} 44. Nxe8 {[%emt 0:00:00]} Be7 {[%emt 0:00:00]} 45. c5 {[%emt 0:00:00]} Rc6 {[%emt 0:00:00]} 46. cxd6 {[%emt 0:00:00]} Bd8 {[%emt 0:00:00]} 47. d7 {[%emt 0:00:00]} Rc3+ {[%emt 0:00:00]} 48. Kg4 {[%emt 0:00:00]} h5+ {[%emt 0:00:00]} 49. Kf5 {[%emt 0:00:00]} Rxg3 {[%emt 0:00:00]} 50. Nd6 {[%emt 0:00:00]} Rg5+ {[%emt 0:00:00]} 51. Ke6 {[%emt 0:00:00]} Rg6+ {[%emt 0:00:00]} 52. Kxe5 {[%emt 0:02:05]} 1-0

[Event "BL 2018-19"]
[Site "Berlin"]
[Date "2019.04.06"]
[Round "14.5"]
[White "Maiwald, Jens-Uwe"]
[Black "Ftacnik, Lubomir"]
[Result "1/2-1/2"]
[ECO "A48"]
[WhiteElo "2443"]
[BlackElo "2512"]
[Annotator "ChessBase"]
[PlyCount "89"]
[EventDate "2018.11.10"]
[EventType "team-tourn"]
[EventCountry "GER"]
[SourceTitle "playchess.com"]
[Source "ChessBase"]
[SourceQuality "1"]
[WhiteTeam "Dresden"]
[BlackTeam "Hamburg SK"]
[TimeControl "40/6000+30:3000+30"]

1. d4 {[%emt 0:00:00]} Nf6 {[%emt 0:00:00]} 2. Nf3 {[%emt 0:00:00]} g6 {[%emt 0:00:03]} 3. Bg5 {[%emt 0:00:24]} Bg7 {[%emt 0:00:29]} 4. Nbd2 {[%emt 0:00:35]} d5 {[%emt 0:01:42]} 5. e3 {[%emt 0:00:44]} O-O {[%emt 0:01:04]} 6. Be2 {[%emt 0:01:12]} c5 {[%emt 0:15:40]} 7. c3 {[%emt 0:01:11]} Qb6 {[%emt 0:00:15]} 8. Qb3 {[%emt 0:01:02]} Nc6 {[%emt 0:00:50]} 9. O-O {[%emt 0:01:38]} Bf5 {[%emt 0:01:32]} 10. dxc5 {[%emt 0:21:04]} Qxc5 {[%emt 0:00:37]} 11. Nd4 {[%emt 0:00:07]} Bc8 {[%emt 0:07:09]} 12. Rfd1 {[%emt 0:14:40]} e5 {[%emt 0:02:52]} 13. Nxc6 {[%emt 0:00:08]} bxc6 {[%emt 0:01:02]} 14. Rac1 {[%emt 0:05:43]} Be6 {[%emt 0:04:25]} 15. Qa4 {[%emt 0:00:22]} Qb6 {[%emt 0:07:51]} 16. c4 {[%emt 0:07:45]} Rab8 {[%emt 0:12:17]} 17. b3 {[%emt 0:05:58]} h6 {[%emt 0:15:59]} 18. Bxf6 {[%emt 0:05:06]} Bxf6 {[%emt 0:02:07]} 19. c5 {[%emt 0:00:08]} Qc7 {[%emt 0:02:07]} 20. e4 {[%emt 0:00:04]} Rfd8 {[%emt 0:05:57]} 21. exd5 {[%emt 0:18:58]} cxd5 {[%emt 0:00:31]} 22. b4 {[%emt 0:00:40]} e4 {[%emt 0:02:13]} 23. b5 {[%emt 0:00:25]} Bb2 {[%emt 0:10:43]} 24. Rc2 {[%emt 0:00:22]} Be5 {[%emt 0:00:05]} 25. h3 {[%emt 0:01:32]} Bf5 {[%emt 0:01:58]} 26. Nb3 {[%emt 0:05:36]} e3 {[%emt 0:02:55]} 27. Bd3 {[%emt 0:00:08]} Bxd3 {[%emt 0:00:59]} 28. Rxd3 {[%emt 0:00:04]} d4 {[%emt 0:02:31]} 29. Qc4 {[%emt 0:07:38]} Qe7 {[%emt 0:01:58]} 30. Re2 {[%emt 0:02:12]} Qg5 {[%emt 0:03:00]} 31. fxe3 {[%emt 0:02:03]} dxe3 {[%emt 0:00:26]} 32. Rexe3 {[%emt 0:00:15]} Rxd3 {[%emt 0:01:12]} 33. Rxd3 {[%emt 0:00:13]} Re8 {[%emt 0:00:37]} 34. Nd2 {[%emt 0:00:48]} Bf4 {[%emt 0:00:54]} 35. Rf3 {[%emt 0:05:47]} Re1+ {[%emt 0:01:39]} 36. Nf1 {[%emt 0:00:02]} Be3+ {[%emt 0:00:32]} 37. Kh2 {[%emt 0:02:26]} Qe5+ {[%emt 0:00:22]} 38. g3 {[%emt 0:01:00]} Bxc5 {[%emt 0:00:24]} 39. Qxf7+ {[%emt 0:00:29]} Kh8 {[%emt 0:00:01]} 40. h4 {[%emt 0:00:51]} Qe2+ {[%emt 0:02:21]} 41. Kh3 {[%emt 0:06:31]} h5 {[%emt 0:11:01]} 42. Qf6+ {[%emt 0:06:41]} Kh7 {[%emt 0:00:01]} 43. Qf7+ {[%emt 0:00:17]} Kh8 {[%emt 0:00:16]} 44. Qf6+ {[%emt 0:00:08]} Kh7 {[%emt 0:00:07]} 45. Qf7+ {[%emt 0:00:14]} 1/2-1/2

[Event "BL 2018-19"]
[Site "Berlin"]
[Date "2019.04.06"]
[Round "14.7"]
[White "Gurevich, Vladimir"]
[Black "Lipok, Christoph"]
[Result "1/2-1/2"]
[ECO "C55"]
[WhiteElo "2469"]
[BlackElo "2287"]
[Annotator "ChessBase"]
[PlyCount "45"]
[EventDate "2018.11.10"]
[EventType "team-tourn"]
[EventCountry "GER"]
[SourceTitle "playchess.com"]
[Source "ChessBase"]
[SourceQuality "1"]
[WhiteTeam "SV Hofheim"]
[BlackTeam "Augsburg"]
[TimeControl "40/6000+30:3000+30"]

1. e4 {[%emt 0:00:00]} e5 {[%emt 0:00:00]} 2. Nf3 {[%emt 0:00:07]} Nc6 {[%emt 0:00:09]} 3. Bc4 {[%emt 0:00:19]} Nf6 {[%emt 0:00:30]} 4. d3 {[%emt 0:00:39]} Be7 {[%emt 0:00:18]} 5. O-O {[%emt 0:00:24]} O-O {[%emt 0:00:10]} 6. Re1 {[%emt 0:00:31]} d6 {[%emt 0:00:25]} 7. a4 {[%emt 0:00:31]} Na5 {[%emt 0:00:21]} 8. Ba2 {[%emt 0:01:17]} c5 {[%emt 0:00:11]} 9. h3 {[%emt 0:04:09]} Nc6 {[%emt 0:02:00]} 10. Nc3 {[%emt 0:03:50]} Nb4 {[%emt 0:02:41]} 11. Bc4 {[%emt 0:01:39]} a6 {[%emt 0:03:45]} 12. Bg5 {[%emt 0:06:45]} Ne8 {[%emt 0:02:43]} 13. Bd2 {[%emt 0:02:42]} Nc7 {[%emt 0:05:23]} 14. a5 {[%emt 0:06:50]} Be6 {[%emt 0:05:23]} 15. Na4 {[%emt 0:03:17]} Bxc4 {[%emt 0:04:19]} 16. dxc4 {[%emt 0:00:55]} Nc6 {[%emt 0:00:14]} 17. Nb6 {[%emt 0:02:50]} Rb8 {[%emt 0:00:21]} 18. c3 {[%emt 0:06:16]} Ne6 {[%emt 0:07:58]} 19. b4 {[%emt 0:02:42]} f5 {[%emt 0:06:52]} 20. exf5 {[%emt 0:07:26]} Rxf5 {[%emt 0:00:18]} 21. Qc2 {[%emt 0:09:54]} Rxf3 {[%emt 0:13:37]} 22. gxf3 {[%emt 0:00:09]} cxb4 {[%emt 0:00:06]} 23. cxb4 {[%emt 0:03:08]} 1/2-1/2